{"text_format":"2","workbook":"xlsx","n_sheets":4,"sheets":["Uniformes","EPI","Material de Jardinagem","Materias de Limpeza"],"not_rendered":{"charts":0,"images":0,"macros":0,"external_links":0,"defined_names":0,"comments":0,"pivot_tables":0},"unopened":[],"bounds":{"document_bytes":16777216,"sheet_cells":100000,"run_cost":"one","rows_first":2000,"rows_last":500,"rows_between":2000,"halvings":0,"cell_chars":16384,"cell_head_chars":4096},"cells_cut":0,"cells_raw":0,"read":"whole","date_system":"1900"}

{"sheet":"Uniformes","index":0,"n_rows":4,"n_cols":7,"rows_kept":4,"cut":false,"hidden":false,"merged":[]}
["ITEM","UNIFORMES DOS AUXILIARES DE JARDINAGEM","UNID.","QUANT. SEMESTRAL","QUANT. ANUAL","PREÇO UNITÁRIO (R$)","PREÇO TOTAL COM BDI - 14,02% - (R$)"]
[1,"Calça comprida com elástico e cordão, em brim","unid",1,2,null,{"$f":"E2*F2*1.1402","v":0}]
[2,"Camiseta em malha fria mangas compridas, com gola em V, com emblema da empresa pintado.","unid",1,2,null,{"$f":"E3*F3*1.1402","v":0}]
[{"$nulls":6},{"$f":"SUM(G2:G3)","v":0}]

{"sheet":"EPI","index":1,"n_rows":9,"n_cols":7,"rows_kept":9,"cut":false,"hidden":false,"merged":[]}
["ITEM","EPI DOS AUXILIARES DE JARDINAGEM","UND","QDE. MENSAL","QDE. ANUAL","PREÇO UNITÁRIO (R$)","PREÇO TOTAL COM BDI - 14,02% - (R$)"]
[1,"Luvas de pano","par",4,48,null,{"$f":"E2*F2*1.1402","v":0}]
[2,"Luvas de couro","par",1,1,null,{"$f":"E3*F3*1.1402","v":0}]
[3,"Protetor auricular/ abafador de ouvido tipo 3M ou similar, para capina com roçadeira costal","unid",1,1,null,0]
[4,"Capa de Chuva","unid",1,2,null,0]
[5,"Chapéu com protetor de pescoço","unid",1,1,null,0]
[6,"Avental de couro","unid",1,1,null,0]
[7,"KIT básico de EPI - Fardamento, Bota de Couro, capacete, luva raspa, óculos, Máscara Filtro papel, Filtro solar FPS30","Und",1,1,null,0]
[{"$nulls":6},{"$f":"SUM(G2:G8)","v":0}]

{"sheet":"Material de Jardinagem","index":2,"n_rows":4,"n_cols":6,"rows_kept":4,"cut":false,"hidden":false,"merged":[]}
["ITEM","DESCRIÇÃO DE MATERIAL DE JARDINAGEM","UNID.","QUANT. ANUAL","PREÇO UNITÁRIO (R$)","PREÇO TOTAL COM BDI - 14,02% - (R$)"]
[1,"Fio de nylon para roçadeira costal 3 mm, rolo de 200 m","Unid",6,null,{"$f":"D2*E2*1.1402","v":0}]
[2,"Roçadeira costal com motor a gasolina de *32* cc","Unid",6,null,{"$f":"D3*E3*1.1402","v":0}]
[{"$nulls":5},{"$f":"SUM(F2:F3)","v":0}]

{"sheet":"Materias de Limpeza","index":3,"n_rows":29,"n_cols":6,"rows_kept":29,"cut":false,"hidden":false,"merged":[]}
["ITEM","DESCRIÇÃO DE MATERIAL DE LIMPEZA","UNID.","QUANT. ANUAL","PREÇO UNITÁRIO (R$)","PREÇO TOTAL COM BDI - 14,02% - (R$)"]
[1,"BALDE PLÁSTICO CAP 10 L CR","Unid",8,null,{"$f":"D2*E2*1.1402","v":0}]
[2,"CLORO CR","L",24,null,{"$f":"D3*E3*1.1402","v":0}]
[3,"DESODORIZADOR DE AMBIENTE SPRAY, 440 ml","Unid",12,null,0]
[4,"ÁLCOOL ETÍLICO HIDRATADO 70° INPM - LITRO embalagem de 1 litro","Unid",24,null,0]
[5,"DESINFETANTE DE USO GERAL - 2 LITROS, Desinfetante de uso geral. Características físico químicas: aspecto líquido, pH (puro) 8,5 a 9,5, Nível de espuma médio. Composição: Álcool Graxo Etoxilado, Cloreto de Alquil, Benzil Amônio, Corantes, Perfume, Tripolifosfato de Sódio e Água. Princípio Ativo: Cloreto de Alquil Dimetil Benzil Amônio 0,8%, embalagem de 2 litros","Unid",48,null,0]
[6,"DETERGENTE LÍQUIDO CONCENTRADO 2L","Unid",24,null,0]
[7,"ESPONJA DE LÃ DE AÇO - pacote de 60 grs. com 8 unidades","pac",244,null,0]
[8,"FLANELA 48 cm x 78 cm - 100% algodão, com acabamento nas laterais","Unid",24,null,0]
[9,"PÁ DE LIXO PLÁSTICA, CABO LONGO CR","Unid",8,null,0]
[10,"PANO DE CHÃO – 55 cm x 75 cm - 100% algodão para limpeza de chão, alvejado, saco lavado","Unid",96,null,0]
[11,"PAPEL HIGIÊNICO FOLHA DUPLA - de primeira linha, folha dupla, extra-macio, absorvente neutro, gofrado e picotado, tamanho 10cmX30m, 100% fibras de celulose virgem, não reciclado, na cor branca, pacote com 4 rolos","Pac",192,null,0]
[12,"PAPEL TOALHA INTERFOLHADO - FARDO C/ 1250FOLHAS - interfolhado, folha simples","Pac",50,null,0]
[13,"RODO INDUSTRIAL - base de 45 cm, borracha dupla, com cabo de alumínio","Unid",4,null,0]
[14,"SABÃO EM BARRA COM GLICERINA - 200 G - produzido com matéria-prima biodegradável, de alta qualidade, pesando 200 G cada barra","Unid",144,null,0]
[15,"SABÃO EM PÓ - 500 G - produzido com matéria-prima biodegradável, de alta qualidade - embalagem de 500 G","Unid",96,null,0]
[16,"SABONETE LÍQUIDO CONCENTRADO - 5 L - com filme hidratante, aroma floral, ph neutro, fator de diluição mínimo de 1:11, acondicionado em bombonas de 5 litros","Galão",48,null,0]
[17,"SACO PLÁSTICO PARA LIXO - 15 L","Unid",3600,null,0]
[18,"SACO PARA LIXO - 40 L","Unid",3600,null,0]
[19,"SACO PLÁSTICO PARA LIXO C/ 100 L","Unid",400,null,0]
[20,"VASSOURA 40 CM COM CABO CR","Unid",8,null,0]
[21,"VASSOURA DE PIAÇAVA - 18 FUROS, medindo 25 cm x 5 cm","Unid",24,null,0]
[22,"VASSOURA DE PELO NATURAL - com base de 30 cm, com cabo longo revestido em plástico","Unid",24,null,0]
[23,"LUVA DOMÉSTICA - TAMANHO M, em látex","Unid",96,null,0]
[24,"VASSOURA PARA SANITÁRIO EM NYLON","Unid",15,null,0]
[25,"PANO DE PRATO - alvejado em algodão, medindo 44 cm x 75 cm","Unid",96,null,0]
[26,"ÁGUA SANITÁRIA - alvejante e desinfetante, teor de cloro ativo 2% a 2,5% - embalagem plástica de 2 litros","Unid",48,null,0]
[27,"ESPONJA DUPLA FACE - com um lado de fibra sintética abrasiva, para limpeza mais difícil: pisos, azulejos, banheiros, etc. e de outro lado com esponja macia de poliuretano para limpezas de superfícies delicadas: louças, vidros, copos, pias, talheres, etc. medindo aproximadamente 110 mm x 75 mm x 22 mm","Unid",96,null,0]
[{"$nulls":5},{"$f":"SUM(F2:F28)","v":0}]